fUST/lending_fUST_20240529
["ID","MTS","AMOUNT","RATE_DAILY","PERIOD"]
[328171669,1716996648382,-205.18,0.00033,3]
[328171670,1716996648391,-205.18,0.00033,3]
[328171671,1716996648401,-205.18,0.00033,3]
[328171672,1716996648410,-246.13523153,0.00033008,7]
[328171673,1716996648420,-1854.17242428,0.00033008,4]
[328171674,1716996648429,-179.11240261,0.00033008,4]
[328171675,1716996648438,-364.52992769,0.0003301,4]
[328171676,1716996648447,-154.81422293,0.0003301,7]
[328171677,1716996648457,-1367.27131751,0.0003301,4]
[328171678,1716996648467,-223.333323,0.00033031,2]
[328171679,1716996648476,-151.0,0.00033031,2]
[328171680,1716996648485,-151.0,0.00033031,2]
[328171681,1716996648494,-151.0,0.00033031,2]
[328171682,1716996648504,-151.0,0.00033031,2]
[328171683,1716996648513,-151.0,0.00033031,2]
[328171684,1716996648522,-151.0,0.00033031,2]
[328171685,1716996648531,-151.0,0.00033031,2]
[328171686,1716996648541,-180.325062,0.00033031,2]
[328171687,1716996648550,-180.325062,0.00033031,2]
[328171688,1716996648560,-151.0,0.00033048,2]
[328171689,1716996648569,-151.0,0.00033048,2]
[328171690,1716996648579,-151.0,0.00033048,2]
[328171691,1716996648589,-151.0,0.00033048,2]
[328171692,1716996648600,-151.0,0.00033048,2]
[328171693,1716996648610,-244.827164,0.00033048,2]
[328171694,1716996648622,-324.897162,0.00033048,2]
[328171695,1716996648632,-324.897162,0.00033048,2]
[328171696,1716996648641,-664.333733,0.00033048,2]
[328171697,1716996648651,-664.333733,0.00033048,2]
[328171698,1716996648660,-1128.135364,0.00033048,2]
[328171699,1716996648669,-1128.135364,0.00033048,2]
[328171700,1716996648679,-230.86074497,0.00033053,7]
[328171701,1716996648688,-16854.46995726,0.00033053,7]
[328171702,1716996648702,-3005.27545289,0.00033053,7]
[328171703,1716996733117,8371.18174474,0.00019177,7]
[328171707,1716997288798,12207.30533777,0.00020547,7]
[328171708,1716997409774,6103.65266889,0.0002067,7]
[328171709,1716997529205,3051.82633445,0.00019311,7]
[328171719,1716997650210,594.01661466,0.00019178,7]
[328171720,1716997715236,-175.85185452,9.096e-05,2]
[328171724,1716997719830,-19275.03631944,9.096e-05,2]
[328171725,1716997731249,-2033.20251904,9.094e-05,2]
[328171730,1716997745103,-691.19683481,9.093e-05,2]
[328171731,1716997745123,-207.92947824,9.093e-05,2]
[328171732,1716997745144,-156.68308505,9.093e-05,2]
[328171733,1716997745164,-514.49757357,9.094e-05,2]
[328171734,1716997745187,-720.99508433,9.094e-05,2]
[328171735,1716997745207,-524.66216611,9.095e-05,2]
[328171736,1716997745227,-7904.3508113,9.096e-05,2]
[328171737,1716997745249,-3744.29213568,9.097e-05,2]
[328171738,1716997745270,-1153.28512896,9.097e-05,2]
[328171739,1716997745290,-523.40016496,9.097e-05,2]
[328171740,1716997745321,-154.82968734,9.098e-05,2]
[328171741,1716997745344,-371.81130833,9.098e-05,2]
[328171742,1716997745366,-179.19540084,9.098e-05,2]
[328171743,1716997745386,-154.82968734,9.098e-05,2]
[328171744,1716997745407,-154.82968734,9.098e-05,2]
[328171745,1716997745428,-302.71490703,9.098e-05,2]
[328171746,1716997745449,-1900.31793063,9.098e-05,2]
[328171747,1716997745471,-154.82968734,9.099e-05,2]
[328171748,1716997745493,-921.85323911,9.129e-05,2]
[328171749,1716997745513,-154.84515485,9.129e-05,2]
[328171750,1716997745532,-3325.9566627,9.13e-05,2]
[328171751,1716997745553,-836.65686665,0.00012899,2]
[328171752,1716997745573,-939.3565203,0.000129,2]
[328171753,1716997745594,-902.23687264,0.00013599,2]
[328171754,1716997745615,-11715.0995804,0.00013699,2]
[328171755,1716997745636,-173.60340764,0.00014847,2]
[328171756,1716997748192,-302.0,9.128e-05,2]
[328171757,1716997753125,-456.57976486,9.128e-05,2]
[328171758,1716997753145,-765.75311261,0.00014847,2]
[328171759,1716997753166,-902.23687261,0.00016475,2]
[328171760,1716997753186,-203.72959216,0.00018,2]
[328171761,1716997753206,-159.57189425,0.000189,2]
[328171762,1716997753226,-164.53624275,0.00018986,2]
[328171763,1716997753245,-355.66,0.00019168,3]
[328171764,1716997753267,-177.83,0.00019168,3]
[328171765,1716997753287,-533.49,0.00019168,3]
[328171766,1716997753309,-235.60367768,0.00019176,2]
[328171767,1716997753330,-283.89725164,0.00019176,2]
[328171768,1716997753352,-281.29504829,0.00019176,2]
[328171769,1716997753373,-963.55859001,0.00019176,2]
[328171770,1716997753394,-395.73690521,0.00019176,2]
[328171771,1716997753414,-265.95886207,0.00019176,2]
[328171772,1716997753435,-6018.61351962,0.00019176,2]
[328171773,1716997753455,-2129.7828882,0.00019176,2]
[328171774,1716997753475,-91.66374869,0.00019177,2]
[328171844,1716997831866,-154.84515485,0.00019166,2]
[328171846,1716997831877,-154.84515485,0.00019166,2]
[328171849,1716997831887,-3744.29213568,0.00019167,2]
[328171850,1716997831897,-1153.28512896,0.00019167,2]
[328171853,1716997831907,-1900.31793063,0.00019167,2]
[328171857,1716997831916,-156.68308505,0.00019167,2]
[328171859,1716997831926,-177.83,0.00019168,3]
[328171863,1716997831935,-533.49,0.00019168,3]
[328171866,1716997831945,-519.05141022,0.00019176,2]
[328171869,1716997831954,-834.73228897,0.00019176,2]
[328171872,1716997831964,-241.41908299,0.00019176,2]
[328171875,1716997831973,-513.00528364,0.00019176,2]
[328171878,1716997831983,-155.19382331,0.00019176,2]
[328171881,1716997831993,-187.84892888,0.00019176,2]
[328171884,1716997832002,-155.06195043,0.00019176,2]
[328171887,1716997832012,-7914.23511678,0.00019176,2]
[328171890,1716997832021,-372.67908712,0.00019176,2]
[328171892,1716997832030,-602.88152429,0.00019176,2]
[328171896,1716997832039,-302.61666796,0.00019176,2]
[328171899,1716997832048,-830.1494834,0.00019176,2]
[328171902,1716997832060,-531.91312356,0.00019176,2]
[328171904,1716997832069,-221.67488627,0.00019176,2]
[328171907,1716997832079,-522.22886781,0.00019176,2]
[328171911,1716997832088,-811.23498524,0.00019176,2]
[328171914,1716997832098,-2991.38827192,0.00019177,2]
[328171916,1716997832107,-3161.64986713,0.00019177,2]
[328171919,1716997832116,-5947.65828415,0.00019178,2]
[328171922,1716997832125,-223.85665917,0.00019178,2]
[328171926,1716997832135,-2333.44716082,0.00019178,2]
[328171929,1716997832144,-155.08139107,0.00019178,2]
[328171932,1716997832154,-155.04636224,0.00019178,2]
[328171935,1716997832163,-641.01144387,0.00019178,2]
[328171938,1716997832172,-258.18643222,0.00019178,2]
[328171940,1716997832181,-500.0,0.00019178,2]
[328171941,1716997832190,-483.22924663,0.00019178,2]
[328171944,1716997832199,-418.52818871,0.00019178,2]
[328171947,1716997832209,-181.92441539,0.00019178,2]
[328171950,1716997832219,-500.0,0.00019178,2]
[328171953,1716997832227,-500.0,0.00019178,2]
[328171956,1716997832236,-500.0,0.00019178,2]
[328171959,1716997832245,-500.0,0.00019178,2]
[328171962,1716997832254,-500.0,0.00019178,2]
[328171965,1716997832263,-500.0,0.00019178,2]
[328171968,1716997832272,-500.0,0.00019178,2]
[328171971,1716997832281,-500.0,0.00019178,2]
[328171973,1716997832291,-500.0,0.00019178,2]
[328171974,1716997832300,-500.0,0.00019178,2]
[328171977,1716997832313,-500.0,0.00019178,2]
[328171978,1716997832321,-500.0,0.00019178,2]
[328171980,1716997832330,-500.0,0.00019178,2]
[328171982,1716997832340,-500.0,0.00019178,2]
[328171984,1716997832349,-500.0,0.00019178,2]
[328171986,1716997832358,-217.86201144,0.00019178,2]
[328171988,1716997832367,-500.0,0.00019178,2]
[328171990,1716997832377,-500.0,0.00019178,2]
[328171992,1716997832386,-500.0,0.00019178,2]
[328171994,1716997832394,-500.0,0.00019178,2]
[328171996,1716997832403,-500.0,0.00019178,2]
[328171998,1716997832413,-564.67885305,0.00019178,2]
[328172000,1716997832422,-500.0,0.00019178,2]
[328172002,1716997832431,-500.0,0.00019178,2]
[328172004,1716997832440,-500.0,0.00019178,2]
[328172006,1716997832449,-500.0,0.00019178,2]
[328172008,1716997832458,-500.0,0.00019178,2]
[328172010,1716997832467,-500.0,0.00019178,2]
[328172012,1716997832476,-300.85144922,0.00019178,2]
[328172014,1716997832485,-500.0,0.00019178,2]
[328172016,1716997832495,-500.0,0.00019178,2]
[328172018,1716997832503,-300.0,0.00019178,2]
[328172020,1716997832512,-500.0,0.00019178,2]
[328172022,1716997832522,-500.0,0.00019178,2]
[328172024,1716997832531,-500.0,0.00019178,2]
[328172026,1716997832540,-500.0,0.00019178,2]
[328172028,1716997832549,-500.0,0.00019178,2]
[328172030,1716997832560,-500.0,0.00019178,2]
[328172032,1716997832569,-500.0,0.00019178,2]
[328172034,1716997832579,-500.0,0.00019178,2]
[328172036,1716997832588,-500.0,0.00019178,2]
[328172038,1716997832597,-500.0,0.00019178,2]
[328172040,1716997832607,-346.53785407,0.00019178,2]
[328172144,1716997839629,-153.46214593,0.00019178,2]
[328172146,1716997839641,-500.0,0.00019178,2]
[328172148,1716997839651,-500.0,0.00019178,2]
[328172149,1716997839661,-500.0,0.00019178,2]
[328172151,1716997839671,-500.0,0.00019178,2]
[328172152,1716997839681,-500.0,0.00019178,2]
[328172153,1716997839692,-500.0,0.00019178,2]
[328172154,1716997839706,-500.0,0.00019178,2]
[328172155,1716997839716,-500.0,0.00019178,2]
[328172156,1716997839726,-500.0,0.00019178,2]
[328172157,1716997839736,-500.0,0.00019178,2]
[328172158,1716997839747,-500.0,0.00019178,2]
[328172159,1716997839757,-500.0,0.00019178,2]
[328172160,1716997839767,-500.0,0.00019178,2]
[328172161,1716997839778,-500.0,0.00019178,2]
[328172162,1716997839790,-500.0,0.00019178,2]
[328172163,1716997839801,-643.11950567,0.00019178,2]
[328172164,1716997839812,-500.0,0.00019178,2]
[328172165,1716997839821,-500.0,0.00019178,2]
[328172167,1716997839831,-500.0,0.00019178,2]
[328172168,1716997839840,-500.0,0.00019178,2]
[328172169,1716997839850,-289.39555092,0.00019178,2]
[328172170,1716997839859,-500.0,0.00019178,2]
[328172171,1716997839869,-500.0,0.00019178,2]
[328172172,1716997839879,-500.0,0.00019178,2]
[328172174,1716997839889,-500.0,0.00019178,2]
[328172176,1716997839899,-500.0,0.00019178,2]
[328172177,1716997839908,-500.0,0.00019178,2]
[328172178,1716997839918,-1429.24544247,0.00019178,2]
[328172179,1716997839927,-1429.24544247,0.00019178,2]
[328172180,1716997839937,-1429.24544247,0.00019178,2]
[328172181,1716997839946,-500.0,0.00019178,2]
[328172182,1716997839956,-1429.24544247,0.00019178,2]
[328172183,1716997839965,-500.0,0.00019178,2]
[328172184,1716997839975,-1429.24544247,0.00019178,2]
[328172185,1716997839984,-500.0,0.00019178,2]
[328172186,1716997839994,-1429.24544247,0.00019178,2]
[328172187,1716997840003,-500.0,0.00019178,2]
[328172188,1716997840013,-500.0,0.00019178,2]
[328172189,1716997840022,-1429.24544247,0.00019178,2]
[328172190,1716997840031,-1429.24544247,0.00019178,2]
[328172191,1716997840041,-500.0,0.00019178,2]
[328172192,1716997840051,-500.0,0.00019178,2]
[328172193,1716997840060,-500.0,0.00019178,2]
[328172194,1716997840070,-1429.24544247,0.00019178,2]
[328172195,1716997840079,-1429.24544247,0.00019178,2]
[328172196,1716997840089,-500.0,0.00019178,2]
[328172197,1716997840098,-1429.24544247,0.00019178,2]
[328172198,1716997840108,-1429.24544247,0.00019178,2]
[328172199,1716997840117,-1429.24544247,0.00019178,2]
[328172200,1716997840127,-1429.24544247,0.00019178,2]
[328172201,1716997840136,-1429.24544247,0.00019178,2]
[328172202,1716997840145,-500.0,0.00019178,2]
[328172203,1716997840155,-500.0,0.00019178,2]
[328172204,1716997840164,-1429.24544247,0.00019178,2]
[328172205,1716997840173,-500.0,0.00019178,2]
[328172206,1716997840183,-500.0,0.00019178,2]
[328172207,1716997840193,-500.0,0.00019178,2]
[328172208,1716997840202,-1429.24544247,0.00019178,2]
[328172209,1716997840212,-1429.24544247,0.00019178,2]
[328172210,1716997840222,-1429.24544247,0.00019178,2]
[328172212,1716997840231,-500.0,0.00019178,2]
[328172214,1716997840240,-500.0,0.00019178,2]
[328172215,1716997840250,-1429.24544247,0.00019178,2]
[328172216,1716997840259,-500.0,0.00019178,2]
[328172217,1716997840269,-291.44816491,0.00019178,2]
[328172218,1716997840279,-1429.24544247,0.00019178,2]
[328172219,1716997840288,-500.0,0.00019178,2]
[328172220,1716997840298,-500.0,0.00019178,2]
[328172221,1716997840308,-500.0,0.00019178,2]
[328172222,1716997840320,-1429.24544247,0.00019178,2]
[328172223,1716997840330,-500.0,0.00019178,2]
[328172224,1716997840339,-500.0,0.00019178,2]
[328172225,1716997840349,-1429.24544247,0.00019178,2]
[328172226,1716997840359,-500.0,0.00019178,2]
[328172227,1716997840368,-1429.24544247,0.00019178,2]
[328172228,1716997840378,-500.0,0.00019178,2]
[328172229,1716997840388,-500.0,0.00019178,2]
[328172230,1716997840399,-1429.24544247,0.00019178,2]
[328172231,1716997840410,-1429.24544247,0.00019178,2]
[328172232,1716997840421,-1429.24544247,0.00019178,2]
[328172233,1716997840431,-500.0,0.00019178,2]
[328172234,1716997840442,-1429.24544247,0.00019178,2]
[328172235,1716997840456,-1429.24544247,0.00019178,2]
[328172236,1716997840467,-1392.59812343,0.00019178,2]
[328172237,1716997840477,-1392.59812343,0.00019178,2]
[328172238,1716997840488,-1392.59812343,0.00019178,2]
[328172239,1716997840498,-1392.59812343,0.00019178,2]
[328172240,1716997840509,-1392.59812343,0.00019178,2]
[328172241,1716997840519,-1392.59812343,0.00019178,2]
[328172242,1716997840530,-1392.59812343,0.00019178,2]
[328172243,1716997840540,-1392.59812343,0.00019178,2]
[328172244,1716997840551,-1392.59812343,0.00019178,2]
[328172245,1716997840560,-1392.59812343,0.00019178,2]
[328172246,1716997840575,-1392.59812343,0.00019178,2]
[328172247,1716997840585,-1392.59812343,0.00019178,2]
[328172248,1716997840595,-1392.59812343,0.00019178,2]
[328172249,1716997840605,-1551.75219467,0.00019178,2]
[328172250,1716997840615,-463.94502521,0.00019178,2]
[328172251,1716997840625,-328.99384479,0.00019178,2]
[328172252,1716997840635,-500.0,0.00019178,2]
[328172253,1716997840644,-166.102937,0.00019178,2]
[328172254,1716997840654,-160.042632,0.00019178,2]
[328172255,1716997840663,-1392.5889619,0.00019311,2]
[328172256,1716997840672,-221.412253,0.00019311,2]
[328172257,1716997840682,-24900.0,0.00019311,2]
[328172258,1716997840691,-902.23687261,0.00019352,2]
[328172259,1716997840705,-1228.90485989,0.0002,7]
[328172260,1716997840715,-87956.14262183,0.0002,2]
[328172261,1716997840724,-410.00781233,0.00020133,2]
[328172262,1716997840734,-1137.73079074,0.00020135,2]
[328172263,1716997840884,-355.66,0.00020538,3]
[328172264,1716997840894,-847.47225448,0.00020547,2]
[328172265,1716997840904,-166.666666,0.00021918,2]
[328172266,1716997840913,-902.23687261,0.00022228,2]
[328172267,1716997840923,-166.666666,0.00022431,2]
[328172268,1716997840932,-166.666666,0.00022944,2]
[328172269,1716997840941,-166.666666,0.00023456,2]
[328172270,1716997840951,-159.57189425,0.000239,2]
[328172271,1716997840960,-166.666666,0.00023969,2]
[328172272,1716997840969,-647.880231,0.00024384,2]
[328172273,1716997840979,-166.666666,0.00024482,2]
[328172274,1716997840988,-151.0,0.00024496,5]
[328172275,1716997840998,-902.23687261,0.00025104,2]
[328172276,1716997841007,-387.19720356,0.000252,2]
[328172277,1716997841017,-387.19720356,0.000252,2]
[328172278,1716997841027,-387.19720356,0.000252,2]
[328172279,1716997841036,-387.19720356,0.000252,2]
[328172280,1716997841046,-387.19720356,0.000252,2]
[328172281,1716997841055,-387.19720356,0.000252,2]
[328172282,1716997841065,-387.19720356,0.000252,2]
[328172283,1716997841074,-387.19720356,0.000252,2]
[328172284,1716997841083,-387.19720356,0.000252,2]
[328172285,1716997841093,-387.19720356,0.000252,2]
[328172286,1716997841102,-387.19720356,0.000252,2]
[328172287,1716997841111,-387.19720356,0.000252,2]
[328172288,1716997841121,-387.19720356,0.000252,2]
[328172289,1716997841130,-387.19720356,0.000252,2]
[328172290,1716997841140,-387.19720356,0.000252,2]
[328172291,1716997841149,-387.19720356,0.000252,2]
[328172292,1716997841158,-387.19720356,0.000252,2]
[328172293,1716997841168,-387.19720356,0.000252,2]
[328172294,1716997841178,-387.19720356,0.000252,2]
[328172295,1716997841187,-387.1972,0.000252,2]
[328172296,1716997841196,-1476.89344561,0.00025204,2]
[328172297,1716997841205,-151.0,0.00025547,5]
[328172298,1716997841215,-30424.64973262,0.00025599,2]
[328172299,1716997841228,-5520.04054669,0.00025599,2]
[328172300,1716997841488,-4947.90067037,0.00025599,2]
[328172301,1716997841497,-1144.36117922,0.000256,2]
[328172302,1716997841506,-150.0,0.000265,2]
[328172303,1716997841515,-151.0,0.00026597,7]
[328172304,1716997841525,-156.62406709,0.00026743,2]
[328172305,1716997841533,-551.06160363,0.00026844,2]
[328172306,1716997841543,-306.29617574,0.00026844,2]
[328172307,1716997841552,-155.07058834,0.00026844,2]
[328172308,1716997841562,-1340.26998009,0.00026844,2]
[328172309,1716997841572,-181.62091911,0.00026844,2]
[328172310,1716997841581,-155.15512011,0.00026844,2]
[328172311,1716997841591,-239.04002635,0.00026844,2]
[328172312,1716997841600,-197.00534377,0.00026844,2]
[328172313,1716997841609,-154.93802479,0.00026844,2]
[328172314,1716997841618,-1089.49237382,0.00026844,2]
[328172315,1716997841627,-1179.58346172,0.00026844,2]
[328172316,1716997841637,-154.93802479,0.00026845,2]
[328172317,1716997841646,-1352.0716296,0.00026846,2]
[328172318,1716997841658,-278.13343495,0.00026846,2]
[328172319,1716997841667,-2196.09128483,0.00026846,2]
[328172320,1716997841676,-4858.3697343,0.00026846,7]
[328172321,1716997841685,-784.74144776,0.00026846,2]
[328172322,1716997841696,-2637.75117063,0.00026846,2]
[328172323,1716997841709,-155.76125289,0.00026846,2]
[328172324,1716997841719,-316.38176035,0.00026846,2]
[328172325,1716997841729,-1496.05848101,0.00026846,2]
[328172326,1716997841739,-4566.48524707,0.00026846,2]
[328172327,1716997841749,-155.58891567,0.00026846,2]
[328172328,1716997841759,-2678.29668145,0.00026846,2]
[328172329,1716997841769,-16155.36567278,0.00026846,2]
[328172330,1716997841780,-56211.33804558,0.00026846,2]
[328172331,1716997841789,-297.45032814,0.00026846,2]
[328172332,1716997841799,-155.01501699,0.00026846,2]
[328172333,1716997841808,-1405.61526917,0.00026846,2]
[328172334,1716997841826,-154.98548318,0.00026846,2]
[328172335,1716997841839,-154.96898762,0.00026846,2]
[328172336,1716997841848,-261.36166647,0.00026847,2]
[328172337,1716997841858,-194.4826775,0.00026847,2]
[328172338,1716997841868,-155.10601543,0.00026847,2]
[328172339,1716997841878,-174.24732678,0.00026847,2]
[328172340,1716997841887,-231.05856354,0.00026848,2]
[328172341,1716997841897,-194.86360978,0.00026848,2]
[328172342,1716997841906,-210.03,0.000274,3]
[328172343,1716997841916,-210.03,0.000274,3]
[328172344,1716997841925,-210.03,0.000274,3]
[328172345,1716997841935,-210.03,0.000274,3]
[328172346,1716997841945,-210.03,0.000274,3]
[328172347,1716997841954,-210.03,0.000274,3]
[328172348,1716997841963,-210.03,0.000274,3]
[328172349,1716997841972,-210.03,0.000274,3]
[328172350,1716997841982,-210.03,0.000274,3]
[328172351,1716997841993,-210.03,0.000274,3]
[328172352,1716997842002,-210.03,0.000274,3]
[328172353,1716997842012,-210.03,0.000274,3]
[328172354,1716997842021,-210.03,0.000274,3]
[328172355,1716997842030,-210.03,0.000274,3]
[328172356,1716997842039,-210.03,0.000274,3]
[328172357,1716997842049,-210.03,0.000274,3]
[328172358,1716997842058,-210.03,0.000274,3]
[328172359,1716997842069,-210.03,0.000274,3]
[328172360,1716997842078,-210.03,0.000274,3]
[328172361,1716997842088,-210.03,0.000274,3]
[328172362,1716997842097,-151.0,0.000274,2]
[328172363,1716997842106,-151.0,0.000274,2]
[328172364,1716997842116,-151.0,0.000274,2]
[328172365,1716997842125,-151.0,0.00027647,7]
[328172366,1716997842134,-635.61810089,0.00028456,2]
[328172367,1716997842143,-151.0,0.00028456,2]
[328172368,1716997842152,-194.938297,0.00028456,2]
[328172369,1716997842161,-194.938297,0.00028456,2]
[328172370,1716997842171,-216.066666,0.00028456,2]
[328172372,1716997842180,-216.066666,0.00028456,2]
[328172374,1716997842189,-413.70024,0.00028456,2]
[328172376,1716997842199,-413.70024,0.00028456,2]
[328172377,1716997842208,-676.881218,0.00028456,2]
[328172378,1716997842218,-158.363224,0.00028456,2]
[328172379,1716997842227,-676.881218,0.00028456,2]
[328172381,1716997842236,-158.363224,0.00028456,2]
[328172382,1716997842246,-621.58479412,0.00028512,2]
[328172384,1716997842255,-151.0,0.00028698,7]
[328172386,1716997842264,-155.21441404,0.00028791,2]
[328172388,1716997842274,-159.57189425,0.000289,2]
[328172390,1716997842283,-221.412253,0.00028966,2]
[328172392,1716997842292,-210.03,0.000292,3]
[328172394,1716997842301,-210.03,0.000292,3]
[328172395,1716997842310,-210.03,0.000292,3]
[328172397,1716997842321,-210.03,0.000292,3]
[328172398,1716997842331,-210.03,0.000292,3]
[328172399,1716997842340,-210.03,0.000292,3]
[328172400,1716997842350,-210.03,0.000292,3]
[328172401,1716997842358,-210.03,0.000292,3]
[328172403,1716997842367,-210.03,0.000292,3]
[328172405,1716997842377,-210.03,0.000292,3]
[328172406,1716997842386,-210.03,0.000292,3]
[328172407,1716997842395,-210.03,0.000292,3]
[328172408,1716997842404,-210.03,0.000292,3]
[328172409,1716997842414,-210.03,0.000292,3]
[328172410,1716997842424,-210.03,0.000292,3]
[328172411,1716997842433,-210.03,0.000292,3]
[328172412,1716997842442,-210.03,0.000292,3]
[328172413,1716997842452,-210.03,0.000292,3]
[328172414,1716997842461,-210.03,0.000292,3]
[328172415,1716997842470,-210.03,0.000292,3]
[328172417,1716997842480,-156.6240671,0.00029672,2]
[328172419,1716997842489,-160.042632,0.00029726,2]
[328172421,1716997842499,-151.0,0.00029748,7]
[328172423,1716997842508,-939.35652025,0.00029873,2]
[328172424,1716997842518,-236.75786509,0.00030135,4]
[328172425,1716997842527,-500.0,0.00030136,4]
[328172426,1716997842537,-500.0,0.00030136,4]
[328172427,1716997842547,-500.0,0.00030136,4]
[328172428,1716997842556,-500.0,0.00030136,4]
[328172429,1716997842567,-500.0,0.00030136,4]
[328172430,1716997842576,-500.0,0.00030136,4]
[328172431,1716997842586,-500.0,0.00030136,4]
[328172433,1716997842595,-500.0,0.00030136,4]
[328172435,1716997842604,-500.0,0.00030136,4]
[328172437,1716997842614,-500.0,0.00030136,4]
[328172439,1716997842624,-500.0,0.00030136,4]
[328172440,1716997842633,-500.0,0.00030136,4]
[328172441,1716997842643,-500.0,0.00030136,4]
[328172442,1716997842653,-500.0,0.00030136,4]
[328172443,1716997842663,-500.0,0.00030136,4]
[328172444,1716997842672,-500.0,0.00030136,4]
[328172445,1716997842683,-500.0,0.00030136,4]
[328172446,1716997842695,-500.0,0.00030136,4]
[328172447,1716997842709,-500.0,0.00030136,4]
[328172448,1716997842718,-500.0,0.00030136,4]
[328172449,1716997842727,-500.0,0.00030136,4]
[328172450,1716997842737,-500.0,0.00030136,4]
[328172451,1716997842746,-601.42440083,0.00030136,4]
[328172453,1716997842756,-500.0,0.00030136,4]
[328172455,1716997842765,-502.04179578,0.00030136,4]
[328172456,1716997842775,-500.0,0.00030136,4]
[328172457,1716997842785,-500.0,0.00030136,4]
[328172458,1716997842795,-500.0,0.00030136,4]
[328172459,1716997842804,-500.0,0.00030136,4]
[328172460,1716997842815,-500.0,0.00030136,4]
[328172461,1716997842824,-500.0,0.00030136,4]
[328172462,1716997842834,-500.0,0.00030136,4]
[328172463,1716997842844,-500.0,0.00030136,4]
[328172464,1716997842854,-500.0,0.00030136,4]
[328172465,1716997842863,-500.0,0.00030136,4]
[328172466,1716997842873,-500.0,0.00030136,4]
[328172467,1716997842882,-500.0,0.00030136,4]
[328172468,1716997842891,-500.0,0.00030136,4]
[328172469,1716997842900,-500.0,0.00030136,4]
[328172470,1716997842910,-500.0,0.00030136,4]
[328172471,1716997842919,-500.0,0.00030136,4]
[328172472,1716997842928,-500.0,0.00030136,4]
[328172473,1716997842938,-500.0,0.00030136,4]
[328172474,1716997842947,-500.0,0.00030136,4]
[328172475,1716997842957,-500.0,0.00030136,4]
[328172476,1716997842966,-500.0,0.00030136,4]
[328172477,1716997842975,-479.9025295,0.00030136,4]
[328172478,1716997842985,-500.0,0.00030136,4]
[328172479,1716997842994,-500.0,0.00030136,4]
[328172480,1716997843003,-500.0,0.00030136,4]
[328172481,1716997843013,-500.0,0.00030136,4]
[328172482,1716997843024,-500.0,0.00030136,4]
[328172483,1716997843033,-500.0,0.00030136,4]
[328172484,1716997843043,-500.0,0.00030136,4]
[328172485,1716997843052,-500.0,0.00030136,4]
[328172486,1716997843062,-500.0,0.00030136,4]
[328172487,1716997843073,-500.0,0.00030136,4]
[328172488,1716997843082,-500.0,0.00030136,2]
[328172489,1716997843091,-500.0,0.00030136,4]
[328172490,1716997843100,-500.0,0.00030136,4]
[328172491,1716997843109,-500.0,0.00030136,4]
[328172492,1716997843118,-500.0,0.00030136,4]
[328172493,1716997843127,-500.0,0.00030136,4]
[328172494,1716997843136,-501.67080288,0.00030136,2]
[328172495,1716997843145,-500.0,0.00030136,4]
[328172496,1716997843155,-500.0,0.00030136,4]
[328172497,1716997843165,-500.0,0.00030136,4]
[328172498,1716997843175,-500.0,0.00030136,4]
[328172499,1716997843184,-500.0,0.00030136,4]
[328172500,1716997843193,-500.0,0.00030136,4]
[328172502,1716997843308,-642.25396089,0.00030136,4]
[328172503,1716997843319,-500.0,0.00030136,4]
[328172504,1716997843328,-500.0,0.00030136,4]
[328172505,1716997843337,-500.0,0.00030136,4]
[328172506,1716997843347,-500.0,0.00030136,4]
[328172507,1716997843357,-500.0,0.00030136,4]
[328172508,1716997843366,-500.0,0.00030136,4]